bitfinex/quotes_ETHUSD_20260207
["timestamp","ask_amount","ask_price","bid_price","bid_amount"]
[1770430728294,2.95374622,2059.3,2058.5,2.09715721]
[1770430728492,2.95374622,2059.3,2058.6,0.87297453]
[1770430729923,2.95374622,2059.3,2058.8,0.001]
[1770430730223,0.002,2059.2,2058.8,0.001]
[1770430730386,0.002,2059.2,2058.8,1.77554042]
[1770430731503,4.85714985,2059.7,2058.8,1.77554042]
[1770430731504,0.002,2059.7,2058.9,1.77454042]
[1770430731709,0.002,2059.6,2058.9,1.77454042]
[1770430732325,0.002,2059.6,2059.1,1.77454042]
[1770430732525,0.002,2059.6,2059.2,0.29887221]
[1770430734846,0.002,2059.6,2059.2,1.51291857]
[1770430738648,0.002,2059.6,2059.2,0.29887221]
[1770430738842,0.002,2059.6,2059.0,1.21415856]
[1770430739014,0.002,2059.6,2059.1,4.85646998]
[1770430739211,0.002,2059.6,2059.1,1.21412267]
[1770430740442,0.002,2059.6,2059.2,1.77454042]
[1770430741143,0.002,2059.6,2059.3,2.98854517]
[1770430741448,1.74174147,2060.2,2059.7,1.77454042]
[1770430741449,0.002,2060.2,2059.7,1.77454042]
[1770430741953,0.002,2060.6,2059.4,0.78445642]
[1770430741954,0.002,2060.6,2059.6,1.77454042]
[1770430742159,0.002,2060.6,2059.8,1.77454042]
[1770430743237,0.002,2060.6,2060.0,1.77454042]
[1770430743426,0.00200001,2060.8,2060.2,1.77454042]
[1770430744545,1.73974147,2061.0,2060.1,0.29881916]
[1770430744856,0.32319561,2061.1,2060.1,2.07335958]
[1770430745632,1.53614244,2061.1,2060.2,1.21347441]
[1770430745840,0.32319561,2061.1,2060.2,1.21347441]
[1770430746030,0.32319561,2061.1,2060.3,0.81407317]
[1770430746752,0.32319561,2061.1,2060.4,1.74736751]
[1770430746958,0.002,2061.3,2060.8,1.74736751]
[1770430747543,0.001,2061.3,2060.9,1.74736751]
[1770430747742,0.001,2061.3,2061.0,1.21300339]
[1770430747962,0.001,2061.3,2061.1,0.78123845]
[1770430748261,1e-08,2061.5,2061.1,0.78123845]
[1770430750064,1e-08,2061.5,2061.2,1.21288569]
[1770430755666,0.002,2061.3,2061.2,1.21288569]
[1770430756078,1e-08,2061.5,2061.2,1.21288569]
[1770430756294,0.00100598,2061.7,2061.4,1.21276802]
[1770430757082,0.002,2062.0,2061.5,1.73266515]
[1770430757391,1.75068772,2062.0,2061.4,1.21276802]
[1770430758370,1.74868772,2061.9,2061.3,1.8973526]
[1770430758975,1.74868772,2061.9,2061.4,0.6748833]
[1770430759284,0.002,2062.0,2061.4,0.6748833]
[1770430759898,0.002,2062.0,2061.4,2.40754845]
[1770430760690,0.002,2062.0,2061.5,1.21270919]
[1770430762075,0.002,2062.0,2061.4,1.8876115]
[1770430762397,2.04718625,2062.0,2061.4,1.8876115]
[1770430762901,3.25961294,2062.0,2061.4,1.8876115]
[1770430763070,1.51092522,2062.0,2061.4,1.8876115]
[1770430763392,1.74868772,2061.9,2061.4,1.8876115]
[1770430764292,0.29849853,2062.0,2061.4,1.8876115]
[1770430764495,1.21442303,2062.0,2061.5,0.74233696]
[1770430764694,1.75068772,2062.0,2061.5,0.74233696]
[1770430764896,1.75068772,2062.0,2061.3,1.89736197]
[1770430765089,1.75068772,2062.0,2061.3,1.21279528]
[1770430766098,1.75068772,2062.0,2061.5,1.21270564]
[1770430766304,1.75068772,2062.0,2061.4,1.21272073]
[1770430766475,0.002,2062.0,2061.4,1.21272073]
[1770430766899,0.002,2062.0,2061.3,4.85119193]
[1770430767202,1.75068772,2062.0,2061.4,0.77966839]
[1770430767378,1.75068772,2062.0,2061.2,2.94550701]
[1770430767582,1.75068772,2062.0,2061.2,1.21284186]
[1770430767888,1.75068772,2062.0,2061.6,0.001]
[1770430768087,1.75068772,2061.8,2061.6,0.001]
[1770430768997,2.96322337,2061.8,2061.6,0.001]
[1770430769204,3.74474041,2061.8,2061.6,0.001]
[1770430771306,3.74474041,2061.8,2061.6,4.444e-05]
[1770430771682,1.74868772,2061.7,2061.4,0.001]
[1770430771902,1.99605269,2061.8,2061.4,0.001]
[1770430772113,0.002,2061.8,2061.4,0.001]
[1770430772290,1.21453503,2061.8,2061.4,0.001]
[1770430772719,2.96322275,2061.8,2061.4,0.001]
[1770430772885,1.74868772,2061.7,2061.4,0.001]
[1770430773318,1.21453503,2061.8,2061.4,0.001]
[1770430774825,0.002,2061.8,2061.4,0.001]
[1770430775024,0.002,2062.2,2061.6,1.73266515]
[1770430775320,0.002,2062.2,2061.7,1.21259155]
[1770430775610,0.002,2062.2,2061.9,1.73266515]
[1770430775987,0.002,2062.5,2061.9,1.73266515]
[1770430777229,0.006,2062.4,2061.9,1.73266515]
[1770430777401,0.006,2062.4,2062.0,1.21241513]
[1770430778006,0.002,2062.4,2062.0,2.93805637]
[1770430778208,0.002,2062.4,2062.1,2.50441293]
[1770430779634,0.001,2062.4,2062.2,1.21229754]
[1770430779935,0.32666142,2062.6,2062.2,1.21229754]
[1770430780132,0.32266142,2062.6,2062.2,1.21229754]
[1770430780337,4.84639663,2063.4,2062.2,1.21229754]
[1770430780338,1.5036406,2063.4,2062.4,1.72564124]
[1770430780513,2.71525416,2063.4,2062.4,1.72564124]
[1770430780836,2.94696762,2063.5,2062.4,1.72564124]
[1770430781328,1.73540399,2063.6,2062.4,1.72564124]
[1770430781534,0.002,2063.3,2062.6,1.72564124]
[1770430781925,0.002,2063.3,2062.7,1.21200368]
[1770430783220,0.002,2063.3,2062.8,1.72564124]
[1770430784027,0.002,2063.3,2062.9,1.21188617]
[1770430785145,0.002,2063.3,2062.9,2.93752741]
[1770430785316,0.002,2063.3,2063.0,0.77850721]
[1770430786241,0.32427242,2064.1,2063.0,0.77850721]
[1770430786242,1.29145854,2064.1,2063.3,1.72564124]
[1770430786544,0.08027242,2064.1,2063.3,1.72564124]
[1770430787565,1.29145509,2064.1,2063.3,1.72564124]
[1770430787841,2.07856843,2064.1,2063.3,2.01938223]
[1770430788050,0.08027242,2064.1,2063.5,1.72564124]
[1770430788745,1.21092161,2064.6,2063.5,1.72564124]
[1770430789252,1.73540399,2064.5,2063.0,0.77850721]
[1770430789453,1.73540399,2064.2,2063.2,1.21167133]
[1770430789748,1.73540399,2064.2,2063.1,1.21176266]
[1770430790139,1.73540399,2064.0,2062.9,2.93748451]
[1770430790320,1.21118162,2064.1,2062.9,1.21184327]
[1770430790321,1.73540399,2063.8,2062.9,1.21184327]
[1770430790514,1.73540399,2063.8,2062.7,1.72564124]
[1770430790753,1.73540399,2063.8,2062.9,1.21187465]
[1770430790954,1.73540399,2063.8,2062.8,1.2119151]
[1770430791135,1.73540399,2063.6,2062.5,1.72564124]
[1770430791454,1.73540399,2063.3,2062.4,1.21213297]
[1770430791663,1.73540399,2062.8,2061.4,0.001]
[1770430791898,0.04391958,2063.6,2061.8,1.72564124]
[1770430792040,2.94717268,2063.1,2061.9,1.21247393]
[1770430792374,1.73540399,2063.0,2061.9,1.21247393]
[1770430792545,2.03012126,2062.9,2062.0,0.77880109]
[1770430792879,2.03012126,2062.9,2062.0,5.38333538]
[1770430793092,2.03012126,2062.9,2062.0,4.60453429]
[1770430793264,2.03012126,2062.9,2062.1,0.001]
[1770430794165,1.73540399,2062.7,2062.1,0.001]
[1770430796252,2.94746643,2062.6,2062.1,4.60553429]
[1770430796451,0.77957162,2062.5,2062.1,4.60553429]
[1770430796774,1.73540399,2062.4,2061.9,0.001]
[1770430796946,1.73540399,2062.4,2061.7,0.001]
[1770430797146,1.73540399,2062.4,2061.5,0.001]
[1770430797342,1.77932357,2062.4,2061.5,0.001]
[1770430797648,1.73540399,2062.2,2061.5,0.001]
[1770430798778,1.21235633,2062.1,2061.5,0.001]
[1770430799147,2.94776032,2062.1,2061.5,0.001]
[1770430799350,1.73540399,2062.0,2061.5,0.001]
[1770430799551,1.73540399,2062.0,2061.1,2.89499883]
[1770430799749,1.73540399,2061.8,2061.1,2.89499883]
[1770430800374,1.73540399,2061.8,2061.0,0.001]
[1770430800580,1.73540399,2061.6,2061.0,0.001]
[1770430801175,1.73540399,2061.4,2060.6,0.001]
[1770430802058,1.77932357,2061.2,2060.6,0.001]
[1770430802592,1.21259155,2061.7,2060.6,0.001]
[1770430802753,1.73540399,2061.5,2060.6,0.001]
[1770430803377,0.61068773,2061.6,2060.6,0.001]
[1770430803595,0.61068773,2061.6,2060.6,1.72664124]
[1770430804484,1.77932357,2061.5,2060.6,0.001]
[1770430804794,1.21276802,2061.4,2060.6,1.72664124]
[1770430805083,1.21273575,2061.5,2060.6,1.72664124]
[1770430805951,3.66246446,2061.5,2060.6,0.001]
[1770430806170,1.84338029,2061.4,2060.6,0.001]
[1770430806665,1.84338029,2061.4,2060.8,0.001]
[1770430806863,1.21282685,2061.3,2060.8,0.001]
[1770430807075,2.5493058,2061.3,2060.8,0.001]
[1770430809759,1.21259155,2061.7,2060.8,0.001]
[1770430811462,1.21255093,2061.8,2061.0,1.85272101]
[1770430812080,1.51166577,2061.9,2061.0,1.85272101]
[1770430813576,3.23720359,2061.9,2061.1,1.21294454]
[1770430813779,3.23720359,2061.9,2061.0,1.21296088]
[1770430814091,0.81308091,2061.8,2061.1,0.60651045]
[1770430814296,1.51166577,2061.9,2061.1,0.60651045]
[1770430815482,1.21217998,2062.4,2061.4,1.85272101]
[1770430817660,1.21217998,2062.4,2061.5,1.21270919]
[1770430817878,1.21217998,2062.4,2061.5,3.0654302]
[1770430818666,0.002,2062.2,2061.5,3.0654302]
[1770430818866,0.002,2062.2,2061.6,0.79163825]
[1770430819370,0.002,2062.2,2061.7,1.85272101]
[1770430819676,0.002,2062.2,2061.9,1.85272101]
[1770430823900,0.002,2062.2,2061.7,1.21256826]
[1770430824070,0.002,2062.2,2061.6,1.21263657]
[1770430824410,0.002,2062.2,2061.6,1.81898343]
[1770430824596,0.002,2062.2,2061.7,1.21257834]
[1770430825607,0.002,2062.2,2061.6,1.21264759]
[1770430825774,0.002,2062.2,2061.7,1.21259155]
[1770430826590,0.002,2062.2,2061.5,1.2126754]
[1770430826772,1.72753782,2062.2,2061.5,0.30653964]
[1770430827897,1.21235633,2062.1,2061.5,1.51924559]
[1770430828083,0.002,2062.4,2061.6,1.85272101]
[1770430829707,1.72553782,2062.3,2061.3,1.21278514]
[1770430829877,1.21235633,2062.1,2061.3,1.81920594]
[1770430832285,1.50831608,2062.2,2061.3,3.67192695]
[1770430832488,0.002,2062.2,2061.4,1.85272101]
[1770430835616,0.002,2062.2,2061.5,1.21270919]
[1770430837914,0.002,2062.2,2061.5,1.79104341]
[1770430840143,0.002,2062.2,2061.6,3.00369377]
[1770430840347,0.002,2062.2,2061.7,2.57647293]
[1770430841920,0.002,2062.2,2061.8,1.79104341]
[1770430842126,0.002,2062.2,2061.9,1.21247393]
[1770430843621,0.002,2062.0,2061.9,1.21247393]
[1770430843943,0.002,2062.2,2061.9,1.21247393]
[1770430844134,0.002,2062.2,2062.1,1.21235633]
[1770430844641,0.002,2062.2,2062.0,1.99773846]
[1770430845054,0.002,2062.2,2061.7,0.78542952]
[1770430845215,0.002,2062.2,2061.7,1.21258432]
[1770430845417,0.002,2062.2,2061.6,1.21361412]
[1770430845618,0.002,2062.2,2061.6,1.21360793]
[1770430846560,0.002,2062.2,2061.6,0.001]
[1770430851863,1.7869682,2062.2,2061.6,0.001]
[1770430852064,1.7869682,2062.2,2061.4,0.001]
[1770430852269,1.7849682,2061.9,2061.4,0.001]
[1770430855355,2.99750093,2061.8,2061.4,0.001]
[1770430855672,2.56973139,2061.7,2061.4,0.001]
[1770430856173,2.56973139,2061.7,2061.6,0.001]
[1770430856472,2.56973139,2061.7,2061.4,0.001]
[1770430857848,1.21265036,2061.6,2061.4,0.001]
[1770430858166,1.21265036,2061.6,2061.4,7.696e-05]
[1770430858459,2.07592584,2061.6,2061.4,7.696e-05]
[1770430862165,2.07592584,2061.6,2061.0,0.001]
[1770430862166,1.21276802,2061.4,2061.0,0.001]
[1770430862371,2.99773622,2061.4,2061.0,0.001]
[1770430863170,0.78476319,2061.7,2061.0,0.001]
[1770430863171,1.99735754,2061.7,2061.0,1.79204341]
[1770430863481,1.7849682,2062.1,2061.0,1.79204341]
[1770430863681,1.21445419,2062.0,2061.0,1.79204341]
[1770430863980,1.21441899,2062.0,2061.0,1.79204341]
[1770430864281,0.002,2062.0,2061.2,1.79104341]
[1770430866761,1.76461956,2062.0,2061.2,1.21283881]
[1770430866954,1.76461956,2062.0,2061.1,1.21291702]
[1770430867154,1.76461956,2062.0,2061.1,1.99405022]
[1770430867379,1.76461956,2062.0,2061.0,0.001]
[1770430867380,0.04391958,2061.9,2061.0,0.001]
[1770430867682,1.76261956,2061.8,2061.0,0.001]
[1770430867869,1.76261956,2061.8,2061.4,0.001]
[1770430868456,0.002,2062.0,2061.4,0.001]
[1770430868670,1.90778554,2062.0,2061.4,0.001]
[1770430870796,1.90778554,2062.0,2061.4,1.77278019]
[1770430870797,0.002,2062.0,2061.4,1.77278019]
[1770430871092,0.002,2062.2,2061.5,1.77178019]
[1770430872485,1.21204156,2062.7,2061.7,1.77178019]
[1770430872681,1.21188617,2063.0,2061.7,1.77178019]
[1770430872984,0.48932796,2063.0,2061.9,1.77178019]
[1770430874162,0.002,2063.1,2061.9,1.77178019]
[1770430874991,0.002,2063.1,2062.1,1.77178019]
[1770430876289,0.002,2063.1,2062.3,1.77178019]
[1770430877208,0.002,2063.1,2062.5,1.77178019]
[1770430877401,0.002,2063.3,2062.5,1.77178019]
[1770430877600,0.002,2063.3,2062.7,1.77178019]
[1770430878077,0.002,2063.3,2062.6,0.29839602]
[1770430878410,0.002,2063.3,2062.4,2.98396017]
[1770430878580,0.002,2063.3,2062.5,1.77178019]
[1770430879209,0.002,2063.3,2062.3,4.84871993]
[1770430879705,0.002,2063.3,2062.4,1.77178019]
[1770430879907,0.002,2062.9,2062.1,1.2123439]
[1770430880096,0.002,2062.9,2062.2,0.29841241]
[1770430880298,0.002,2062.9,2062.0,1.21237075]
[1770430880709,0.002,2062.9,2062.1,1.21234014]
[1770430881419,0.002,2062.9,2061.9,2.98425412]
[1770430882084,1.90778554,2062.9,2061.8,1.21249418]
[1770430882522,0.3119613,2062.8,2061.8,1.21249418]
[1770430883382,1.21200368,2062.7,2061.8,1.21249418]
[1770430884014,1.5239485,2062.8,2061.9,1.77178019]
[1770430885414,1.90578554,2062.7,2061.7,4.58268234]
[1770430885713,1.90578554,2062.6,2061.7,3.3701172]
[1770430887210,1.94970512,2062.4,2061.7,3.3701172]
[1770430887614,1.21223876,2062.3,2061.7,3.3701172]
[1770430890524,4.84895505,2062.5,2061.7,3.3701172]
[1770430890693,1.16036956,2062.4,2061.7,3.3701172]
[1770430892008,1.90578554,2062.3,2061.7,3.3701172]
[1770430892210,1.90578554,2062.3,2061.4,0.001]
[1770430892913,3.11808308,2062.2,2061.4,0.001]
[1770430893611,3.11808308,2062.2,2061.6,0.001]
[1770430893813,0.79672733,2062.1,2061.6,0.001]
[1770430895024,1.21241513,2062.0,2061.6,0.001]
[1770430896200,2.37257284,2062.4,2061.6,1.84534804]
[1770430896432,1.21220328,2062.4,2061.6,1.84534804]
[1770430896603,1.21198934,2062.8,2061.6,1.84534804]
[1770430897011,0.002,2062.9,2061.8,1.84434804]
[1770430898601,0.002,2062.9,2062.0,1.84434804]
[1770430899100,0.002,2062.9,2062.2,1.84434804]
[1770430899319,0.002,2062.9,2062.4,1.84434804]
[1770430900044,0.002,2063.1,2062.4,1.84434804]
[1770430901002,0.002,2063.1,2062.5,1.21212121]
[1770430901230,0.002,2063.1,2062.3,0.30567044]
[1770430901400,0.002,2063.1,2062.0,6.69392045]
[1770430901598,0.002,2063.1,2062.2,1.21229587]
[1770430902229,0.002,2063.1,2062.2,1.21228797]
[1770430902427,0.002,2063.1,2062.1,1.2123277]
[1770430903416,1.21376869,2063.1,2062.1,1.2123277]
[1770430903730,0.7936866,2063.0,2062.2,0.30566757]
[1770430904835,0.7936866,2063.0,2061.9,1.21242703]
[1770430905005,0.7936866,2063.0,2062.0,1.212408]
[1770430905402,0.002,2062.9,2062.0,1.212408]
[1770430905640,1.21388617,2062.9,2061.9,1.84434804]
[1770430907760,1.21388617,2062.9,2062.1,1.84434804]
[1770430907761,0.002,2062.9,2062.1,1.84434804]
[1770430907925,0.002,2062.9,2062.2,0.30567632]
[1770430908325,0.002,2062.9,2061.9,1.21244108]
[1770430908326,1.87802253,2062.9,2061.9,1.21244108]
[1770430908943,0.002,2062.9,2061.9,3.05678912]
[1770430912631,0.002,2062.9,2062.0,1.84434804]
[1770430913138,0.002,2062.9,2062.0,3.05672241]
[1770430913344,1.91994211,2062.8,2061.8,0.001]
[1770430915644,1.21200368,2062.7,2061.8,0.001]
[1770430915942,0.79799605,2062.6,2061.8,0.001]
[1770430917846,1.21212121,2062.5,2061.8,0.001]
[1770430918051,1.21212121,2062.5,2062.0,0.001]
[1770430918585,0.002,2062.7,2062.0,1.84534804]
[1770430918874,1.21401297,2062.7,2062.0,1.84534804]
[1770430919181,0.002,2062.7,2062.0,1.84534804]
[1770430920256,0.002,2062.7,2062.1,1.21235633]
[1770430920463,0.002,2062.7,2062.2,0.7907218]
[1770430920974,1.87802253,2062.7,2062.0,0.001]
[1770430921182,0.002,2062.7,2062.0,0.001]
[1770430921499,0.002,2062.7,2062.1,1.84434804]
[1770430922240,0.002,2062.7,2062.1,3.0566577]
[1770430922876,0.002,2062.7,2062.2,1.84434804]
[1770430923171,0.002,2062.7,2062.4,1.84434804]
[1770430923547,0.002,2062.7,2062.3,0.30566577]
[1770430923871,0.002,2062.7,2062.1,3.0566577]
[1770430924252,0.002,2062.7,2062.2,1.21229754]
[1770430925178,1e-08,2063.1,2062.3,1.84434804]
[1770430925342,1.21348837,2063.6,2062.5,1.84434804]
[1770430925545,1.81962724,2063.6,2062.5,1.84434804]
[1770430927069,1.81962724,2063.6,2062.6,3.15356723]
[1770430927584,1.77753421,2063.5,2062.5,1.21208855]
[1770430929054,1.21159251,2063.4,2062.5,3.04310345]
[1770430929389,1.21159251,2063.4,2062.7,1.8310149]
[1770430930458,1.21159251,2063.4,2062.7,1.8320149]
[1770430930859,1.21359251,2063.4,2062.7,1.8320149]
[1770430931683,0.002,2063.4,2062.7,3.0439912]
[1770430932059,0.002,2063.4,2062.7,0.001]
[1770430932260,0.85788018,2063.4,2062.7,0.001]
[1770430934490,1.21165123,2063.3,2062.7,0.001]
[1770430940093,1.89075906,2063.2,2062.7,0.001]
[1770430940590,1.89075906,2063.2,2062.5,0.001]
[1770430940992,3.10252775,2063.1,2062.5,0.001]
[1770430941181,0.79496025,2063.0,2062.5,0.001]
[1770430942294,4.84707479,2063.2,2062.6,1.8310149]
[1770430942295,1.21172985,2063.2,2062.6,1.8310149]
[1770430943001,1.21172985,2063.2,2062.7,0.001]
[1770430943370,4.84660928,2063.3,2062.7,0.001]
[1770430946383,1.21165123,2063.3,2062.7,0.001]
[1770430946703,1.21165123,2063.3,2062.7,2.62136111]
[1770430946998,1.21165123,2063.3,2062.8,1.8310149]
[1770430947788,0.002,2063.4,2062.8,1.8310149]
[1770430951298,0.002,2063.4,2062.8,3.04292084]
[1770430951497,0.002,2063.4,2062.8,1.8310149]
[1770430951697,0.002,2063.4,2062.9,0.38333185]
[1770430953323,0.002,2063.4,2063.0,1.8310149]
[1770430954525,3.10258649,2063.0,2062.7,0.001]
[1770430954730,3.10258649,2063.0,2062.1,3.04336667]
[1770430955031,1.04641242,2062.9,2062.3,1.8310149]
[1770430955195,0.002,2063.2,2062.3,1.8310149]
[1770430955196,1.04641242,2062.8,2062.3,1.8310149]
[1770430955391,1.04641242,2062.7,2062.3,1.8310149]
[1770430955640,1.04641242,2062.6,2062.1,3.04335599]
[1770430955960,1.04641242,2062.5,2062.1,3.04335599]
[1770430956096,1.04641242,2062.4,2062.2,0.78939956]
[1770430956293,1.04641242,2062.3,2062.2,0.78939956]
[1770430956695,0.5621038,2062.3,2062.2,2.0016971]
[1770430956892,0.96787352,2063.0,2062.3,1.84031407]
[1770430957319,0.96787352,2063.0,2062.2,2.0016971]
[1770430957554,0.96787352,2063.0,2062.3,0.86913645]
[1770430957932,1.21181001,2063.1,2062.4,1.84031407]
[1770430958951,0.002,2063.2,2062.5,3.05243528]
[1770430959958,1.8590873,2063.2,2062.3,2.08134701]
[1770430960135,2.16416115,2063.1,2062.3,1.21221056]
[1770430961963,1.21180897,2063.1,2062.3,1.84031407]
[1770430963026,0.002,2063.2,2062.3,1.84031407]
[1770430963231,1.21371824,2063.2,2062.3,1.84031407]
[1770430963556,1.21371824,2063.2,2062.1,3.05262289]
[1770430963557,1.8570873,2063.1,2062.1,3.05262289]
[1770430963759,2.16855981,2063.0,2062.2,0.79031807]
[1770430963933,1.21188617,2062.9,2062.2,2.002595]
[1770430964661,1.21188617,2062.9,2062.2,3.84290907]
[1770430966361,4.84754471,2063.0,2062.2,3.84290907]
[1770430966944,1.21182743,2063.0,2062.2,3.84290907]
[1770430967142,1.21182743,2063.0,2062.3,0.87023016]
[1770430967446,0.002,2062.9,2062.3,0.87023016]
[1770430967964,0.002,2062.9,2062.4,1.84031407]
[1770430968169,0.002,2062.9,2062.5,1.84031407]
[1770430971156,0.002,2062.9,2062.3,3.92274064]
[1770430971360,0.002,2062.9,2062.4,0.95621304]
[1770430971557,0.002,2062.9,2062.4,2.16838867]
[1770430972444,0.002,2062.9,2062.4,0.95621304]
[1770430972651,0.002,2062.9,2062.4,2.16839147]
[1770430973142,0.002,2062.9,2062.5,1.84031407]
[1770430973468,0.002,2062.9,2062.6,0.40087055]
[1770430973862,0.002,2062.9,2062.6,2.24118462]
[1770430974171,0.002,2062.9,2062.6,0.40087055]
[1770430977172,4.80238734,2063.4,2062.6,0.40087055]
[1770430977380,1.21170996,2063.2,2062.4,0.95621304]
[1770430977560,1.8570873,2063.1,2062.4,0.95621304]
[1770430980279,1.8570873,2063.1,2062.3,0.001]
[1770430980280,1.8570873,2062.9,2062.3,0.001]
[1770430980966,1.8590873,2062.9,2062.3,0.001]
[1770430981150,1.8590873,2062.9,2062.4,0.001]
[1770430983065,0.002,2062.9,2062.4,0.001]
[1770430983454,0.002,2062.9,2062.4,1.84131407]
[1770430983957,0.002,2062.9,2062.4,0.001]
[1770430984553,0.002,2062.9,2062.4,7.77e-05]
[1770430985162,0.79402245,2062.9,2062.4,7.77e-05]
[1770430985361,2.65110975,2062.9,2062.4,7.77e-05]
[1770430986083,2.65110975,2062.9,2062.0,0.001]
[1770430986084,1.66273316,2062.8,2062.0,0.001]
[1770430986582,1.70665274,2062.7,2062.0,0.001]
[1770430986768,1.66273316,2062.7,2062.0,0.001]
[1770430987164,1.21206244,2062.6,2062.0,0.001]
[1770430987367,2.4691626,2062.6,2062.0,0.001]
[1770430988489,1.21206244,2062.6,2062.0,0.001]
[1770430989897,1.21206244,2062.6,2062.0,1.69365707]
[1770430991295,4.8477938,2062.8,2062.0,1.69365707]
[1770430991489,6.57089293,2062.8,2062.0,0.001]
[1770430992692,1.76701871,2062.7,2062.0,0.001]
[1770430992902,1.72309913,2062.5,2062.0,0.001]
[1770430993397,1.21217998,2062.4,2062.0,0.001]
[1770430993980,1.21217998,2062.4,2062.2,0.001]
[1770430994182,1.21217998,2062.4,2062.0,0.001]
[1770430994872,2.93527911,2062.4,2062.0,0.001]
[1770430995076,0.77839951,2062.3,2062.0,0.001]
[1770430995295,1.21229754,2062.2,2062.0,0.001]
[1770430998893,1.21409183,2062.6,2062.1,1.69265707]
[1770430999078,0.002,2062.6,2062.1,1.69265707]
[1770430999280,1.21409632,2062.6,2062.0,0.001]
[1770430999478,1.21409632,2062.6,2062.0,1.69365707]
[1770431000787,1.21409632,2062.6,2062.0,2.90605166]
[1770431000788,0.002,2062.6,2062.0,2.90605166]
[1770431000987,0.002,2062.6,2062.1,0.7755925]
[1770431002405,0.002,2062.6,2062.0,2.90607167]
[1770431002587,1.72509913,2062.6,2062.0,0.001]
[1770431002801,1.21212121,2062.5,2062.0,0.001]
[1770431002995,2.93522034,2062.5,2062.0,0.001]
[1770431003206,0.77857052,2062.4,2062.0,0.001]
[1770431005109,1.21223876,2062.3,2062.0,0.001]
[1770431005287,1.99079516,2062.4,2062.0,0.001]
[1770431005496,1.21222464,2062.4,2062.0,1.69365707]
[1770431006217,1.8185117,2062.4,2062.2,0.001]
[1770431006384,1.8185117,2062.4,2062.0,0.001]
[1770431006385,1.8205117,2062.4,2062.0,0.001]
[1770431009920,1.72309913,2062.3,2061.8,0.001]
[1770431010221,1.21229754,2062.2,2061.8,0.001]
[1770431010411,0.77845869,2062.1,2061.8,0.001]
[1770431012115,1.21241513,2062.0,2061.8,0.001]
[1770431013142,0.60828706,2062.4,2061.8,1.69365707]
[1770431013307,0.002,2062.4,2061.8,1.69365707]
[1770431014316,0.002,2062.4,2062.0,1.69265707]
[1770431018432,0.002,2062.4,2062.0,2.90503863]
[1770431018637,0.002,2062.4,2062.2,0.001]
[1770431018818,0.002,2062.4,2062.2,8.004e-05]
[1770431021040,0.002,2062.4,2062.2,1.59438947]
[1770431025042,0.002,2062.4,2062.2,3.57241554]
[1770431025540,0.002,2062.6,2062.3,1.59430943]
[1770431027638,0.002,2062.6,2062.4,1.21217998]
[1770431027848,0.002,2062.6,2062.4,2.80648941]
[1770431028343,0.004,2062.6,2062.3,1.21219101]
[1770431028545,0.004,2062.6,2062.3,2.05433109]
[1770431028933,0.004,2062.6,2062.3,0.84214008]
[1770431029119,0.00191996,2062.5,2062.0,0.001]
[1770431029320,0.00191996,2062.5,2062.0,1.21340824]
[1770431029536,0.00191996,2062.5,2062.0,2.80767789]
[1770431030318,0.00191996,2062.5,2062.1,2.36006368]
[1770431031246,0.002,2062.6,2062.2,0.001]
[1770431031442,0.00191996,2062.5,2062.2,0.001]
[1770431031644,0.002,2062.4,2062.2,0.001]
[1770431034758,4.7059332,2062.8,2062.2,0.001]
[1770431034923,0.75794508,2062.7,2062.2,0.001]
[1770431038554,1.21206244,2062.6,2062.2,0.001]
[1770431040670,1.21206244,2062.6,2062.0,1.59530943]
[1770431040671,1.6595727,2062.5,2062.0,0.001]
[1770431041686,1.21206244,2062.6,2062.0,1.59530943]
[1770431042386,2.5446475,2062.6,2062.0,1.59530943]
[1770431042979,2.5446475,2062.6,2062.0,0.001]
[1770431043273,2.5446475,2062.6,2062.3,0.001]
[1770431043467,0.002,2062.4,2062.0,0.001]
[1770431044982,0.002,2062.4,2062.0,1.59530943]
[1770431045158,0.002,2062.4,2062.1,1.59430943]
[1770431046586,0.002,2062.4,2062.0,0.76688986]
[1770431048989,0.002,2062.6,2062.1,1.49608947]
[1770431049186,1.21389853,2062.9,2062.1,1.49608947]
[1770431049393,0.002,2062.8,2062.2,1.84362878]
[1770431050205,0.002,2062.9,2062.2,1.84362878]
[1770431050386,0.002,2062.7,2062.2,1.84362878]
[1770431051390,0.002,2062.7,2062.3,2.70832823]
[1770431051592,0.002,2062.7,2062.4,0.30558675]
[1770431053094,0.002,2062.9,2062.4,0.30558675]
[1770431053095,0.002,2062.6,2062.4,0.30558675]
[1770431053292,0.002,2062.8,2062.4,0.30558675]
[1770431053666,0.002,2062.7,2062.4,0.30558675]
[1770431053867,0.002,2062.7,2062.2,1.84362878]
[1770431054091,0.002,2062.6,2062.2,1.84362878]
[1770431054278,0.002,2062.8,2062.2,1.84362878]
[1770431055000,0.002,2062.7,2062.2,1.84362878]
[1770431055293,0.002,2062.7,2062.3,0.30559383]
[1770431055598,0.002,2062.6,2062.3,1.8026833]
[1770431055800,0.002,2062.8,2062.3,1.8026833]
[1770431056093,0.002,2062.5,2062.4,1.49608947]
[1770431056297,0.002,2062.5,2062.4,2.31723923]
[1770431056870,0.002,2062.7,2062.5,1.49608947]
[1770431059607,0.006,2062.7,2062.4,2.0333268]
[1770431059807,0.006,2062.7,2062.4,3.52941627]
[1770431060417,0.006,2062.7,2062.4,2.31723923]
[1770431060581,0.006,2062.7,2062.5,0.38360252]
[1770431061209,0.004,2062.6,2062.4,0.82114976]
[1770431061420,0.004,2062.6,2061.6,0.001]
[1770431061421,1.5185768,2062.6,2061.6,2.70971285]
[1770431061615,1.5155768,2062.4,2061.7,1.21258908]
[1770431062109,0.003,2062.3,2061.7,1.21258908]
[1770431062584,0.003,2062.2,2061.7,1.21258908]
[1770431063011,0.003,2062.1,2061.6,2.70971963]
[1770431063210,0.003,2062.1,2061.7,1.49608947]
[1770431063508,4.84839863,2062.6,2061.8,1.49708947]